bitfinex-derivatives/quotes_SOLF0:USTF0_20240829
["timestamp","ask_amount","ask_price","bid_price","bid_amount"]
[1724900846984,319.52287364,143.98,143.95,29.69172297]
[1724900847178,10.68,143.96,143.94,0.05262987]
[1724900847374,14.12577773,143.96,143.95,24.06763359]
[1724900847778,17.59807773,143.96,143.95,24.06763359]
[1724900847978,17.59807773,143.96,143.95,12.51601098]
[1724900848181,14.12577773,143.96,143.94,0.05262987]
[1724900849083,10.68,143.95,143.85,6.9422]
[1724900849382,10.68,143.89,143.85,6.9422]
[1724900849688,14.1541,143.89,143.86,3.4745]
[1724900849879,10.68,143.89,143.85,6.9422]
[1724900850078,3.52104976,143.88,143.86,0.05259262]
[1724900850686,3.4744,143.87,143.86,0.05259262]
[1724900851878,3.52084976,143.88,143.86,0.05259262]
[1724900852688,3.4744,143.87,143.86,0.05259262]
[1724900852985,0.04664976,143.88,143.86,0.05259262]
[1724900853185,3.52104976,143.88,143.86,0.05259262]
[1724900853581,14.20104976,143.88,143.86,0.05259262]
[1724900854881,3.4744,143.87,143.86,0.05259262]
[1724900855280,14.27208935,143.88,143.81,7.0581]
[1724900855488,10.68,143.83,143.81,10.534]
[1724900855692,5.49380667,143.83,143.81,7.8359]
[1724900855886,8.96920667,143.83,143.79,4.36]
[1724900856087,8.96920667,143.83,143.79,7.8361]
[1724900856293,0.04859635,143.82,143.8,0.04391528]
[1724900856792,0.04859635,143.82,143.8,3.52001528]
[1724900857392,0.04859635,143.82,143.8,0.04391528]
[1724900857393,10.72859635,143.82,143.8,0.04391528]
[1724900857684,10.68,143.81,143.8,0.04391528]
[1724900857887,3.4759,143.81,143.8,0.04391528]
[1724900858082,14.1559,143.81,143.8,0.04391528]
[1724900858484,3.4759,143.81,143.8,0.04391528]
[1724900858680,14.1559,143.81,143.8,0.04391528]
[1724900859292,3.4768,143.78,143.74,4.36]
[1724900859483,10.68,143.77,143.74,4.36]
[1724900859787,14.1565,143.79,143.75,3.4772]
[1724900860285,0.05081782,143.78,143.75,3.4772]
[1724900862992,0.05081782,143.78,143.75,10.68]
[1724900863182,0.05081782,143.78,143.74,1.2394]
[1724900863386,0.05081782,143.78,143.76,10.68]
[1724900863583,0.05081782,143.78,143.74,1.2394]
[1724900863584,0.05081782,143.78,143.74,11.9194]
[1724900864899,0.05081782,143.78,143.75,3.4773]
[1724900867989,3.52751782,143.78,143.75,3.4773]
[1724900868188,3.52751782,143.78,143.74,7.8575]
[1724900868385,3.52751782,143.78,143.74,3.4775]
[1724900869395,14.1569,143.77,143.74,3.4775]
[1724900869597,14.1569,143.77,143.73,6.9688]
[1724900869795,10.68,143.76,143.73,6.9688]
[1724900869997,14.1573,143.76,143.73,1.3411]
[1724900870203,10.68,143.76,143.72,3.4779]
[1724900870793,10.68,143.75,143.72,3.4779]
[1724900871001,10.72409671,143.75,143.72,3.4779]
[1724900871304,14.20149671,143.75,143.72,3.4779]
[1724900872201,3.4776,143.74,143.71,3.4782]
[1724900873204,3.4776,143.74,143.7,4.38]
[1724900873205,3.478,143.73,143.7,4.38]
[1724900873903,14.158,143.73,143.69,3.4787]
[1724900874202,14.158,143.73,143.62,27.8]
[1724900874203,10.68,143.7,143.66,3.46274713]
[1724900874501,0.05223947,143.69,143.68,3.479]
[1724900877002,14.158,143.73,143.69,3.4787]
[1724900877400,3.4781,143.72,143.69,3.4787]
[1724900877596,3.4781,143.72,143.68,3.4789]
[1724900877802,10.68,143.71,143.68,3.4789]
[1724900878000,10.7317566,143.71,143.68,3.52641676]
[1724900878599,10.7317566,143.71,143.69,3.4787]
[1724900878798,0.0517566,143.71,143.68,10.72751676]
[1724900880305,0.0517566,143.71,143.7,3.4786]
[1724900880501,17.68765964,143.9,143.7,10.68]
[1724900880706,10.68,143.76,143.7,15.06]
[1724900881010,14.1577,143.74,143.7,4.38]
[1724900881503,14.1577,143.74,143.71,0.04954087]
[1724900881504,0.04873341,143.73,143.71,0.04954087]
[1724900882300,0.04873341,143.73,143.71,3.52784087]
[1724900882701,0.04873341,143.73,143.71,0.04954087]
[1724900882907,0.04873341,143.73,143.72,3.4781]
[1724900885412,0.04873341,143.73,143.71,3.52764087]
[1724900886003,0.04873341,143.73,143.71,0.04954087]
[1724900887309,0.04873341,143.73,143.72,3.4781]
[1724900894014,0.04873341,143.73,143.71,0.04954087]
[1724900894415,14.1581,143.72,143.71,0.04954087]
[1724900899225,17.63791864,143.72,143.71,0.04954087]
[1724900903122,3.4787,143.7,143.67,3.4792]
[1724900903318,10.68,143.69,143.67,3.4792]
[1724900904115,14.21225989,143.69,143.67,3.52305893]
[1724900905122,10.73345989,143.69,143.67,3.52305893]
[1724900905422,10.73345989,143.69,143.68,3.479]
[1724900905423,0.05345989,143.69,143.68,3.479]
[1724900907520,0.05345989,143.69,143.67,3.52305893]
[1724900909624,3.53225989,143.69,143.67,3.52305893]
[1724900910017,0.05345989,143.69,143.67,3.52305893]
[1724900911225,0.05345989,143.69,143.68,3.479]
[1724900913129,0.05345989,143.69,143.67,3.52305893]
[1724900915230,0.05345989,143.69,143.68,3.479]
[1724900919231,339.0,143.75,143.74,3.4776]
[1724900919431,10.68,143.78,143.71,15.12]
[1724900919645,10.68,143.77,143.71,4.44]
[1724900919838,10.68,143.75,143.71,4.44]
[1724900920234,0.04515773,143.74,143.72,0.04721993]
[1724900920635,0.04515773,143.74,143.72,3.52521993]
[1724900920938,0.04515773,143.74,143.72,0.04721993]
[1724900922433,0.04515773,143.74,143.73,3.4778]
[1724900929047,0.04515773,143.74,143.72,3.52521993]
[1724900936952,3.52285773,143.74,143.72,0.04721993]
[1724900940051,0.04515773,143.74,143.72,0.04721993]
[1724900944364,3.52275773,143.74,143.72,0.04721993]
[1724900945852,0.04515773,143.74,143.73,3.4778]
[1724900946467,0.04515773,143.74,143.73,7.8578]
[1724900948264,0.04515773,143.74,143.72,3.52521993]
[1724900949456,3.52275773,143.74,143.72,3.52521993]
[1724900952063,3.52275773,143.74,143.72,0.04721993]
[1724900952269,14.20275773,143.74,143.72,0.04721993]
[1724900952668,0.04515773,143.74,143.72,0.04721993]
[1724900953564,0.04515773,143.74,143.73,3.4778]
[1724900958278,0.04515773,143.74,143.72,0.04721993]
[1724900958279,0.04515773,143.74,143.72,3.52521993]
[1724900959180,14.1578,143.73,143.72,0.04721993]
[1724900959680,3.4784,143.71,143.67,7.8591]
[1724900959983,10.68,143.7,143.67,7.8591]
[1724900960680,10.7250457,143.7,143.67,7.90876671]
[1724900962582,0.0450457,143.7,143.67,7.90876671]
[1724900963580,0.0450457,143.7,143.67,3.52876671]
[1724900963779,0.0450457,143.7,143.67,7.90876671]
[1724900965485,0.0450457,143.7,143.68,3.479]
[1724900968680,14.2037457,143.7,143.67,7.90886671]
[1724900969479,10.68,143.69,143.67,0.04966671]
[1724900970689,3.479,143.68,143.67,0.04966671]
[1724900970881,0.0450457,143.7,143.67,0.04966671]
[1724900971081,10.7250457,143.7,143.67,0.04966671]
[1724900971284,0.0450457,143.7,143.67,0.04966671]
[1724900972286,0.0450457,143.7,143.68,3.4789]
[1724900973791,3.5236457,143.7,143.68,3.4789]
[1724900981394,0.0450457,143.7,143.68,3.4789]
[1724900982594,0.0450457,143.7,143.69,3.4788]
[1724900985996,3.4774,143.75,143.68,16.3562]
[1724900986198,10.68,143.76,143.7,10.68]
[1724900986602,14.1572,143.76,143.72,3.4779]
[1724900987203,0.04622522,143.75,143.73,0.04554243]
[1724900988595,3.52362522,143.75,143.73,0.04554243]
[1724900991002,14.20362522,143.75,143.73,0.04554243]
[1724900994506,3.52362522,143.75,143.73,0.04554243]
[1724900999504,0.04622522,143.75,143.73,3.52334243]
[1724900999807,0.04622522,143.75,143.73,10.72554243]
[1724901000205,0.04622522,143.75,143.73,0.04554243]
[1724901000805,3.52362522,143.75,143.73,0.04554243]
[1724901004609,14.1576,143.74,143.73,0.04554243]
[1724901005114,14.1576,143.74,143.68,1.2962]
[1724901005115,10.68,143.74,143.69,4.38]
[1724901005317,10.68,143.73,143.69,4.38]
[1724901006117,0.04532192,143.72,143.7,0.04773471]
[1724901006317,3.4785,143.71,143.7,0.04773471]
[1724901009208,10.68,143.71,143.63,11.9558]
[1724901009513,10.68,143.73,143.67,3.4791]
[1724901009715,10.68,143.73,143.66,10.68]
[1724901009913,349.68,143.74,143.68,10.68]
[1724901010115,349.68,143.74,143.69,3.4786]
[1724901010318,3.52509206,143.73,143.69,3.4786]
[1724901010619,3.52509206,143.73,143.69,7.8586]
[1724901010822,3.52509206,143.73,143.7,3.4785]
[1724901011706,0.04709206,143.73,143.69,4.38]
[1724901012717,3.52509206,143.73,143.7,3.4783]
[1724901016213,3.4781,143.72,143.69,7.8587]
[1724901017118,3.52499206,143.73,143.69,7.8587]
[1724901022121,3.4782,143.72,143.69,7.8587]
[1724901022310,3.4782,143.72,143.69,4.38]
[1724901024615,0.04709206,143.73,143.69,4.38]
[1724901026418,3.52509206,143.73,143.7,3.4785]
[1724901029125,3.52509206,143.73,143.69,4.38]
[1724901029126,0.04709206,143.73,143.71,3.4781]
[1724901029325,0.04709206,143.73,143.69,15.06]
[1724901029728,0.04709206,143.73,143.72,3.4781]
[1724901037228,0.04709206,143.73,143.71,3.4782]
[1724901037428,0.04709206,143.73,143.69,4.38]
[1724901038335,0.04709206,143.73,143.71,3.4783]
[1724901050848,0.04709206,143.73,143.72,3.4781]
[1724901057757,0.04709206,143.73,143.71,3.4781]
[1724901058455,0.04709206,143.73,143.71,7.8581]
[1724901061456,0.04709206,143.73,143.72,3.4781]
[1724901065858,0.04709206,143.73,143.71,7.8582]
[1724901066649,0.04709206,143.73,143.71,4.38]
[1724901066849,0.04709206,143.73,143.7,3.4785]
[1724901069162,10.68,143.71,143.69,4.38]
[1724901069363,10.68,143.71,143.68,4.38]
[1724901069564,10.72982819,143.71,143.68,4.38]
[1724901070466,10.72982819,143.71,143.68,7.8589]
[1724901072774,10.68,143.7,143.67,3.4792]
[1724901072970,10.72836091,143.7,143.67,3.4792]
[1724901073265,10.72836091,143.7,143.66,4.38]
[1724901073266,10.68,143.68,143.66,4.38]
[1724901073456,10.68,143.68,143.61,4.0014]
[1724901073457,10.68,143.68,143.65,4.38]
[1724901073660,10.73320823,143.68,143.61,14.6814]
[1724901073863,0.05320823,143.68,143.64,10.68]
[1724901074069,0.05320823,143.68,143.64,14.11133878]
[1724901074273,0.05320823,143.68,143.66,10.68]
[1724901074472,0.05320823,143.68,143.67,3.4793]
[1724901075866,0.05320823,143.68,143.67,14.1593]
[1724901076465,0.05320823,143.68,143.67,3.4793]
[1724901076770,0.05320823,143.68,143.67,14.1593]
[1724901077767,0.05320823,143.68,143.67,3.4793]
[1724901079765,0.05320823,143.68,143.67,7.8393]
[1724901083368,10.68,143.74,143.71,3.4783]
[1724901084472,10.72561729,143.74,143.71,3.52304417]
[1724901086369,0.04561729,143.74,143.73,3.4778]
[1724901094981,10.72561729,143.74,143.71,0.04474417]
[1724901096078,14.20331729,143.74,143.71,0.04474417]
[1724901096273,0.04561729,143.74,143.71,0.04474417]
[1724901096682,0.04561729,143.74,143.72,3.4779]
[1724901100682,0.04561729,143.74,143.71,0.04474417]
[1724901100980,0.04561729,143.74,143.71,3.52304417]
[1724901103286,3.52321729,143.74,143.71,3.52304417]
[1724901111885,3.52321729,143.74,143.71,0.04474417]
[1724901123302,14.20321729,143.74,143.71,0.04474417]
[1724901125796,14.1581,143.72,143.71,0.04474417]
[1724901125996,14.19988861,143.72,143.64,10.68]
[1724901126198,10.68,143.7,143.65,4.36]
[1724901126496,10.68,143.7,143.66,3.4793]
[1724901126891,10.68,143.69,143.62,1.3367]
[1724901127096,0.04835179,143.67,143.64,0.02092778]
[1724901127800,0.04835179,143.67,143.66,10.68]
[1724901128299,0.04835179,143.67,143.66,14.1595]
[1724901133398,0.04835179,143.67,143.66,3.4795]
[1724901135202,0.04835179,143.67,143.65,3.4797]
[1724901138908,0.04835179,143.67,143.64,3.50082778]
[1724901139205,10.72835179,143.67,143.64,3.50082778]
[1724901139409,14.20775179,143.67,143.64,0.02092778]
[1724901139707,10.68,143.66,143.64,0.02092778]
[1724901141906,14.1597,143.66,143.64,0.02092778]
[1724901145617,10.68,143.66,143.64,0.02092778]
[1724901147917,14.1595,143.66,143.64,0.02092778]
[1724901152018,10.68,143.66,143.64,0.02092778]
[1724901154024,0.04835179,143.67,143.64,0.02092778]
[1724901155112,0.04835179,143.67,143.65,3.4798]
[1724901155523,0.04835179,143.67,143.64,0.02092778]
[1724901156421,0.04835179,143.67,143.66,3.4795]
[1724901180858,0.04835179,143.67,143.66,7.8395]
[1724901205966,0.04835179,143.67,143.66,18.5195]
[1724901207972,1.3444,143.74,143.71,3.4782]
[1724901208974,1.39410548,143.74,143.71,3.52274445]
[1724901210775,1.39410548,143.74,143.71,0.04454445]
[1724901211675,1.39410548,143.74,143.71,3.52284445]
[1724901211875,1.39410548,143.74,143.71,0.04454445]
[1724901212571,0.04970548,143.74,143.71,0.04454445]
[1724901213183,0.04970548,143.74,143.71,3.52264445]
[1724901213777,0.04970548,143.74,143.71,0.04454445]
[1724901215182,0.04970548,143.74,143.71,3.52284445]
[1724901217782,3.4779,143.73,143.71,0.04454445]
[1724901217979,3.4779,143.73,143.69,4.36]
[1724901217980,12.0113,143.72,143.69,4.36]
[1724901218277,12.0113,143.72,143.66,10.68]
[1724901218278,12.0113,143.72,143.68,7.839]
[1724901218882,0.04596272,143.71,143.69,0.02473512]
[1724901229985,0.04596272,143.71,143.69,3.50353512]
[1724901246610,0.04596272,143.71,143.7,3.4786]
[1724901255817,342.8101,143.79,143.74,3.4775]
[1724901256016,353.4901,143.79,143.74,3.4775]
[1724901256423,356.9667,143.79,143.74,3.4775]
[1724901256722,356.9667,143.79,143.75,0.0498309]
[1724901256723,0.04817726,143.78,143.75,0.0498309]
[1724901256925,3.52477726,143.78,143.75,0.0498309]
[1724901257120,14.20477726,143.78,143.75,0.0498309]
[1724901257920,14.1569,143.77,143.75,0.0498309]
[1724901262526,10.68,143.77,143.75,0.0498309]
[1724901267535,14.1569,143.77,143.75,0.0498309]
[1724901268430,10.68,143.77,143.75,0.0498309]
[1724901269528,14.20487726,143.78,143.75,0.0498309]
[1724901270728,3.52487726,143.78,143.75,0.0498309]
[1724901270934,14.20487726,143.78,143.75,0.0498309]
[1724901278333,14.157,143.77,143.75,0.0498309]
[1724901279935,10.68,143.77,143.75,0.0498309]
[1724901281335,14.20487726,143.78,143.75,0.0498309]
[1724901284827,10.72817726,143.78,143.75,0.0498309]
[1724901285037,10.72817726,143.78,143.75,3.5271309]
[1724901285639,10.72817726,143.78,143.75,0.0498309]
[1724901286127,14.20477726,143.78,143.75,0.0498309]
[1724901297154,3.477,143.77,143.75,0.0498309]
[1724901297353,14.157,143.77,143.75,0.0498309]
[1724901298557,10.68,143.77,143.75,0.0498309]
[1724901299152,3.52487726,143.78,143.75,0.0498309]
[1724901300254,14.20487726,143.78,143.75,0.0498309]
[1724901300456,10.68,143.76,143.75,0.0498309]
[1724901301456,0.04817726,143.78,143.75,0.0498309]
[1724901302256,3.52487726,143.78,143.75,0.0498309]
[1724901302453,3.52487726,143.78,143.75,3.5271309]
[1724901302956,10.68,143.77,143.75,3.5271309]
[1724901303656,3.52487726,143.78,143.75,3.5271309]
[1724901303657,10.68,143.76,143.75,0.0498309]
[1724901303861,0.04817726,143.78,143.75,0.0498309]
[1724901304058,10.68,143.77,143.75,0.0498309]
[1724901304461,14.1569,143.77,143.75,0.0498309]
[1724901311556,3.4771,143.76,143.75,0.0498309]
[1724901311760,14.1571,143.76,143.75,0.0498309]
[1724901318958,3.4769,143.77,143.75,0.0498309]
[1724901324565,0.04817726,143.78,143.75,0.0498309]
[1724901325165,0.04817726,143.78,143.75,3.5270309]
[1724901326271,3.52487726,143.78,143.75,3.5270309]
[1724901327773,0.04817726,143.78,143.76,3.477]
[1724901331577,0.04817726,143.78,143.77,3.4769]
[1724901332573,0.04817726,143.78,143.75,3.5270309]
[1724901332774,10.68,143.77,143.75,0.0498309]
[1724901333474,10.72817726,143.78,143.75,0.0498309]
[1724901333779,0.04817726,143.78,143.76,3.4771]
[1724901337176,10.72817726,143.78,143.76,3.4771]
[1724901337476,10.72817726,143.78,143.75,3.5271309]
[1724901341784,0.04817726,143.78,143.77,3.4769]
[1724901342282,10.72817726,143.78,143.66,8.1403]
[1724901342477,10.68,143.72,143.66,8.1403]
[1724901342778,10.68,143.72,143.66,18.8203]
[1724901343178,0.05153878,143.7,143.68,3.49976694]
[1724901346282,3.4777,143.74,143.69,3.4788]
[1724901346782,3.4777,143.74,143.7,4.34]
[1724901347280,0.04468581,143.73,143.71,0.04720781]
[1724901348275,0.04468581,143.73,143.71,1.36670781]
[1724901349381,0.04468581,143.73,143.71,4.84480781]
[1724901349777,0.04468581,143.73,143.71,1.36670781]
[1724901351882,3.52268581,143.73,143.71,0.04720781]
[1724901357281,14.1581,143.72,143.71,0.04720781]
[1724901358894,14.1581,143.72,143.66,4.34]
[1724901358895,10.68,143.72,143.66,4.34]
[1724901359087,10.68,143.69,143.66,4.34]
[1724901359285,3.4791,143.68,143.66,4.34]
[1724901359487,3.4791,143.68,143.64,3.4798]
[1724901359682,3.4791,143.68,143.64,7.8198]
[1724901359888,0.04985764,143.67,143.65,0.02519791]
[1724901363991,0.04985764,143.67,143.65,2.63869791]
[1724901364590,0.04985764,143.67,143.65,3.94739791]
[1724901364796,0.04985764,143.67,143.66,3.4795]
[1724901366503,3.4782,143.72,143.67,3.4791]
[1724901366711,14.1582,143.72,143.67,3.4791]
[1724901366911,10.68,143.72,143.67,3.4791]
[1724901367210,10.68,143.7,143.68,4.34]
[1724901367710,10.72795048,143.7,143.68,4.39120346]
[1724901368210,10.72795048,143.7,143.68,7.87020346]
[1724901369809,10.72795048,143.7,143.68,4.39120346]
[1724901371503,0.04795048,143.7,143.68,4.39120346]
[1724901372406,0.04795048,143.7,143.69,3.4788]
[1724901373701,0.04795048,143.7,143.68,7.87010346]
[1724901379115,0.04795048,143.7,143.69,3.4788]
[1724901384605,0.04795048,143.7,143.68,7.87010346]
[1724901385109,10.72795048,143.7,143.68,7.87010346]
[1724901389817,0.04795048,143.7,143.68,7.87010346]
[1724901393315,0.04795048,143.7,143.69,3.4788]
[1724901400313,0.04795048,143.7,143.68,7.87020346]
[1724901404326,0.04795048,143.7,143.69,3.4788]
[1724901410823,0.04795048,143.7,143.68,7.87010346]
[1724901411130,10.72795048,143.7,143.68,7.87010346]
[1724901411325,10.72795048,143.7,143.68,0.05120346]
[1724901419135,10.68,143.69,143.68,0.05120346]
[1724901419523,14.1588,143.69,143.68,0.05120346]
[1724901420331,3.4788,143.69,143.68,0.05120346]
[1724901420532,14.1588,143.69,143.68,0.05120346]
[1724901429641,3.4788,143.69,143.68,0.05120346]
[1724901429848,14.1588,143.69,143.68,0.05120346]
[1724901442751,3.4794,143.67,143.61,1.2613]
[1724901442946,10.68,143.65,143.62,4.32]
[1724901443450,10.68,143.65,143.63,3.4802]
[1724901443857,10.73223735,143.65,143.63,3.50405209]
[1724901444752,10.73223735,143.65,143.63,0.02385209]
[1724901446756,10.73223735,143.65,143.58,1.2748]
[1724901447050,10.68,143.6,143.58,1.2748]
[1724901447653,10.72647293,143.6,143.58,1.2748]
[1724901449153,0.04647293,143.6,143.58,1.2748]
[1724901453054,10.72647293,143.6,143.58,1.2748]
[1724901453952,10.72647293,143.6,143.57,7.8017]
[1724901454951,0.04647293,143.6,143.57,7.8017]
[1724901455151,10.72647293,143.6,143.57,7.8017]
[1724901457765,10.68,143.58,143.57,4.32]
[1724901457960,10.68,143.58,143.53,2.7068]
[1724901458161,10.68,143.56,143.53,7.0268]
[1724901459168,10.68,143.56,143.53,10.5094]
[1724901462762,10.68,143.56,143.53,7.8026]
[1724901462963,10.68,143.56,143.53,3.4826]
[1724901463160,3.4822,143.55,143.5,3.4832]
[1724901463471,10.72966735,143.54,143.5,4.32]
[1724901463959,10.72966735,143.54,143.51,3.483]
[1724901465472,0.04966735,143.54,143.5,15.0]
[1724901466369,0.04966735,143.54,143.52,3.4828]
[1724901469470,0.04966735,143.54,143.5,4.32]
[1724901469471,10.72966735,143.54,143.5,4.32]
[1724901469862,10.72966735,143.54,143.51,3.4829]
[1724901470068,10.72966735,143.54,143.5,4.32]
[1724901470764,10.72966735,143.54,143.52,3.4827]
[1724901474770,10.72966735,143.54,143.51,3.4831]
[1724901475870,10.72966735,143.54,143.52,3.4829]
[1724901476066,0.04966735,143.54,143.52,3.4829]
[1724901476969,0.04966735,143.54,143.5,4.34]
[1724901477178,10.72966735,143.54,143.5,4.34]
[1724901477367,10.68,143.52,143.5,4.34]
[1724901477675,10.68,143.52,143.46,2.6554]
[1724901477879,0.04799489,143.5,143.47,4.32]
[1724901478269,0.04799489,143.5,143.48,3.4836]
[1724901478874,0.04799489,143.5,143.49,3.4836]
[1724901481469,0.04799489,143.5,143.46,4.79019396]
[1724901481673,0.04799489,143.5,143.47,4.32]
[1724901481874,0.04799489,143.5,143.47,3.484]
[1724901482477,10.68,143.49,143.47,3.484]
[1724901488282,10.68,143.49,143.48,3.4839]
[1724901489081,0.04799489,143.5,143.48,3.4839]
[1724901492989,10.72799489,143.5,143.48,3.4839]
[1724901493484,10.72799489,143.5,143.46,4.32]
[1724901493485,10.68,143.49,143.46,4.32]
[1724901493786,10.68,143.47,143.46,4.32]
[1724901494485,10.68,143.47,143.46,3.4844]
[1724901494693,10.68,143.47,143.45,1.2391]
[1724901495390,10.68,143.47,143.45,4.7235]
[1724901495985,3.53149489,143.5,143.45,4.7235]
[1724901496184,3.53149489,143.5,143.46,3.4843]
[1724901496389,10.68,143.49,143.46,3.4843]
[1724901498283,10.68,143.49,143.45,4.7236]
[1724901499092,10.68,143.48,143.45,3.4845]
[1724901499292,10.68,143.46,143.45,3.4845]
[1724901499488,10.68,143.46,143.44,7.8047]
[1724901501986,10.68,143.46,143.44,3.4847]
[1724901503893,0.04898861,143.47,143.43,4.32]
[1724901504096,0.04898861,143.47,143.43,15.0]
[1724901505291,0.04898861,143.47,143.46,3.4844]
[1724901512596,339.0,143.54,143.52,3.4828]
[1724901513000,339.0,143.54,143.5,4.32]
[1724901513202,339.0,143.54,143.52,3.4828]
[1724901513598,339.05191475,143.54,143.52,3.52879796]
[1724901513799,339.05191475,143.54,143.53,3.4827]
[1724901514099,0.05191475,143.54,143.52,0.04599796]
[1724901515800,0.05191475,143.54,143.52,3.52879796]
[1724901516697,0.05191475,143.54,143.53,3.4827]
[1724901522100,339.0,143.62,143.58,3.4813]
[1724901522304,10.68,143.61,143.58,3.4813]
[1724901523213,10.72784779,143.61,143.58,3.52648199]
[1724901523516,0.04784779,143.61,143.6,3.481]
[1724901524012,0.04784779,143.61,143.59,7.8011]
[1724901527913,0.04784779,143.61,143.6,3.481]
[1724901538535,1.2524,143.7,143.65,3.4796]
[1724901538725,11.9324,143.7,143.65,3.4796]
[1724901539532,3.5307568,143.69,143.66,0.04858296]
[1724901540336,14.2107568,143.69,143.66,0.04858296]
[1724901545243,3.5307568,143.69,143.66,3.52808296]
[1724901545442,0.0519568,143.69,143.66,0.04858296]
[1724901546741,10.7319568,143.69,143.66,0.04858296]
[1724901547047,14.1593,143.67,143.66,0.04858296]
[1724901547845,3.4799,143.65,143.62,7.8003]
[1724901548044,14.1599,143.65,143.62,3.4803]
[1724901548647,14.20505554,143.65,143.62,3.53056321]
[1724901549148,10.68,143.63,143.62,0.05026321]
[1724901549748,3.4801,143.64,143.62,0.05026321]
[1724901556856,3.4802,143.63,143.62,0.05026321]
[1724901565049,14.1602,143.63,143.62,0.05026321]
[1724901589872,3.4802,143.63,143.62,0.05026321]
[1724901590168,14.1602,143.63,143.62,0.05026321]
[1724901593460,3.4802,143.63,143.62,0.05026321]
[1724901593664,0.04515554,143.65,143.62,0.05026321]
[1724901593665,3.4801,143.64,143.62,0.05026321]
[1724901594164,10.72515554,143.65,143.62,0.05026321]
[1724901594767,3.48,143.64,143.62,0.05026321]
[1724901595172,3.52495554,143.65,143.62,3.53076321]
[1724901595572,0.04515554,143.65,143.62,3.53076321]
[1724901595766,3.4801,143.64,143.62,0.05026321]
[1724901597069,3.4801,143.64,143.62,3.53076321]
[1724901600376,3.52505554,143.65,143.62,3.53076321]
[1724901600673,0.04515554,143.65,143.62,0.05026321]
[1724901601066,0.04515554,143.65,143.64,3.48]
[1724901611288,3.52495554,143.65,143.62,0.05026321]
[1724901612683,10.68,143.64,143.62,0.05026321]
[1724901614289,3.4802,143.63,143.62,0.05026321]
[1724901618995,14.1602,143.63,143.62,0.05026321]
[1724901624395,3.4814,143.59,143.55,14.162]
[1724901624600,10.68,143.6,143.55,14.162]
[1724901625100,3.4815,143.58,143.55,18.462]
[1724901625294,10.68,143.6,143.55,18.462]
[1724901625495,0.04971651,143.58,143.55,18.50735746]
[1724901626095,3.53121651,143.58,143.55,3.52735746]
[1724901627598,3.4819,143.56,143.55,0.04535746]
[1724901627802,14.1619,143.56,143.55,0.04535746]
[1724901631604,3.4819,143.56,143.55,0.04535746]
[1724901632500,3.4819,143.57,143.55,0.04535746]
[1724901637604,0.04971651,143.58,143.55,0.04535746]
[1724901638202,3.53121651,143.58,143.55,3.52725746]
[1724901641498,0.04971651,143.58,143.55,0.04535746]
[1724901641698,0.04971651,143.58,143.56,10.68]
[1724901642999,0.04971651,143.58,143.55,1.29575746]
[1724901643618,0.04971651,143.58,143.56,3.4818]
[1724901651616,3.53121651,143.58,143.56,3.4818]
[1724901652820,3.53121651,143.58,143.55,3.52745746]
[1724901654420,3.4817,143.57,143.55,3.52745746]
[1724901655021,3.53131651,143.58,143.55,3.52745746]
[1724901657523,3.4818,143.57,143.55,0.04535746]
[1724901657724,10.72971651,143.58,143.55,0.04535746]
[1724901658118,3.4819,143.56,143.55,0.04535746]
[1724901658321,14.1619,143.56,143.55,0.04535746]
[1724901660022,10.72971651,143.58,143.55,0.04535746]
[1724901660427,0.04971651,143.58,143.55,0.04535746]
[1724901660629,3.53131651,143.58,143.55,0.04535746]
[1724901660931,0.04971651,143.58,143.55,0.04535746]
[1724901662128,3.53121651,143.58,143.55,3.52745746]
[1724901667638,10.72971651,143.58,143.55,0.04535746]
[1724901667838,10.68,143.57,143.55,0.04535746]
[1724901668139,10.68,143.56,143.55,0.04535746]
[1724901668340,14.1619,143.56,143.55,0.04535746]
[1724901668837,3.4819,143.56,143.55,0.04535746]
[1724901669635,3.4818,143.57,143.55,0.04535746]
[1724901670237,3.4819,143.56,143.55,0.04535746]
[1724901674433,3.4818,143.57,143.55,0.04535746]